bitfinex/quotes_BTCUSD_20220306
["timestamp","ask_amount","ask_price","bid_price","bid_amount"]
[1646601062445,0.02601,39113.0,39099.0,0.9367]
[1646601062648,0.01277,39119.0,39112.0,0.95974842]
[1646601062649,0.03878,39119.0,39112.0,0.95974842]
[1646601062891,0.02601,39119.0,39112.0,0.95974842]
[1646601063093,0.01277,39123.0,39116.0,0.7867]
[1646601063294,0.127877,39142.0,39116.0,0.7867]
[1646601063295,0.18756741,39128.0,39117.0,0.0471]
[1646601063491,0.1,39138.0,39117.0,0.0471]
[1646601063492,0.31930944,39127.0,39117.0,0.0471]
[1646601063695,0.41498903,39128.0,39116.0,0.7867]
[1646601063892,0.41498903,39128.0,39111.0,0.007]
[1646601063893,0.4,39119.0,39111.0,0.007]
[1646601064090,0.41930944,39118.0,39111.0,0.007]
[1646601064293,0.1,39116.0,39111.0,0.007]
[1646601064493,0.33207944,39115.0,39111.0,0.007]
[1646601064695,0.06277,39115.0,39111.0,0.007]
[1646601065094,0.16277,39120.0,39107.0,1.1]
[1646601065295,0.384851,39113.0,39089.0,0.05987]
[1646601065497,0.01519102,39107.0,39090.0,0.7867]
[1646601065700,0.55,39101.0,39090.0,0.7867]
[1646601065897,0.484851,39098.0,39090.0,0.7867]
[1646601066093,0.02445,39094.0,39090.0,0.7867]
[1646601066293,0.02445,39094.0,39080.0,0.384677]
[1646601066294,0.1509,39094.0,39080.0,0.384677]
[1646601066540,0.1,39091.0,39081.0,0.7867]
[1646601066743,0.38479,39087.0,39081.0,0.7867]
[1646601066943,0.38479,39087.0,39076.0,0.1544]
[1646601066944,0.38479,39081.0,39076.0,0.1544]
[1646601067143,0.38479,39079.0,39077.0,0.39463415]
[1646601067349,0.38479,39079.0,39060.0,0.4633]
[1646601067350,0.65,39076.0,39060.0,0.4633]
[1646601067544,0.0145592,39074.0,39061.0,0.38479]
[1646601067742,0.31930944,39075.0,39049.0,0.01278]
[1646601067743,0.01666116,39070.0,39049.0,0.01278]
[1646601067943,0.02444,39065.0,39062.0,0.20480729]
[1646601068146,0.0106069,39071.0,39062.0,0.20480729]
[1646601068147,0.05,39076.0,39066.0,1.17149]
[1646601068344,0.05,39076.0,39065.0,0.0592323]
[1646601068345,0.05,39076.0,39068.0,0.7867]
[1646601068644,0.103,39082.0,39065.0,0.2092323]
[1646601068645,0.003,39082.0,39073.0,0.15]
[1646601068842,0.2,39093.0,39076.0,0.7867]
[1646601068843,0.01279,39092.0,39076.0,0.7867]
[1646601069045,0.1,39093.0,39078.0,0.7867]
[1646601069046,0.01223229,39093.0,39078.0,0.7867]
[1646601069243,0.1,39086.0,39078.0,0.7867]
[1646601069444,1.17988315,39085.0,39078.0,0.7867]
[1646601069642,0.83479,39077.0,39076.0,0.00022065]
[1646601069848,0.2,39073.0,39054.0,0.02572]
[1646601070049,0.2,39073.0,39035.0,5.0]
[1646601070050,0.16421768,39058.0,39035.0,1.0]
[1646601070319,0.16421768,39058.0,39044.0,0.045]
[1646601070320,0.2499,39055.0,39044.0,0.045]
[1646601070503,0.38479,39052.0,39044.0,0.045]
[1646601070706,0.1161251,39053.0,39044.0,0.045]
[1646601070707,0.1,39050.0,39044.0,0.045]
[1646601070909,0.14233,39055.0,39050.0,0.3]
[1646601071107,0.05,39057.0,39053.0,0.16410813]
[1646601071304,0.1,39064.0,39053.0,0.16410813]
[1646601071305,0.1,39064.0,39054.0,0.38479]
[1646601071504,0.25,39058.0,39054.0,0.38479]
[1646601071703,0.1,39073.0,39054.0,0.38479]
[1646601071704,0.1151339,39072.0,39054.0,0.38479]
[1646601071909,0.1151339,39072.0,39060.0,0.38479]
[1646601071910,0.1,39067.0,39060.0,0.38479]
[1646601072103,0.1,39067.0,39055.0,0.30522146]
[1646601072104,0.1,39067.0,39055.0,2.0]
[1646601072302,0.30522146,39076.0,39051.0,1.2]
[1646601072303,0.1,39069.0,39051.0,1.2]
[1646601072507,0.1,39067.0,39051.0,1.2]
[1646601072706,0.01598425,39066.0,39051.0,1.2]
[1646601072905,0.01796695,39065.0,39052.0,0.01278]
[1646601073205,0.01538156,39063.0,39052.0,0.38479]
[1646601073408,0.01047,39070.0,39053.0,0.15]
[1646601073604,0.0135795,39064.0,39055.0,0.15]
[1646601073804,0.5,39077.0,39063.0,0.18451934]
[1646601074036,0.51166514,39077.0,39064.0,0.38479]
[1646601074337,0.1,39075.0,39064.0,0.38479]
[1646601074539,0.40447312,39074.0,39056.0,19.0]
[1646601074736,0.40447312,39074.0,39066.0,0.16903587]
[1646601074737,0.1,39074.0,39066.0,0.16903587]
[1646601074937,0.1,39071.0,39058.0,0.01278]
[1646601075142,0.1,39071.0,39064.0,0.15577079]
[1646601075344,0.11047,39080.0,39065.0,0.38479]
[1646601075345,0.5,39080.0,39065.0,0.38479]
[1646601075544,0.5,39080.0,39065.0,0.68926312]
[1646601075745,0.00022301,39077.0,39066.0,0.05588]
[1646601075940,3.01e-06,39077.0,39069.0,0.15]
[1646601076142,3.01e-06,39077.0,39066.0,0.05588]
[1646601076143,3.01e-06,39077.0,39073.0,0.15]
[1646601076340,3.01e-06,39077.0,39076.0,0.15025587]
[1646601076540,3.01e-06,39077.0,39076.0,0.89534099]
[1646601076741,0.0011,39097.0,39077.0,5.699e-05]
[1646601076941,0.0011,39097.0,39093.0,0.19340047]
[1646601077140,0.0011,39097.0,39093.0,0.427635]
[1646601077340,0.0011,39097.0,39093.0,0.0431]
[1646601077792,0.0011,39104.0,39093.0,0.0431]
[1646601077988,0.1,39101.0,39094.0,0.02572]
[1646601078189,0.2011,39104.0,39094.0,0.02572]
[1646601078387,0.30395206,39103.0,39100.0,1.0]
[1646601078590,0.2011,39104.0,39100.0,1.0]
[1646601078591,0.01405469,39101.0,39100.0,1.0]
[1646601078790,0.39884469,39101.0,39100.0,1.0]
[1646601079190,0.38479,39101.0,39100.0,1.0]
[1646601079994,0.48479,39101.0,39100.0,1.0]
[1646601080395,0.003,39102.0,39101.0,0.7867]
[1646601080592,0.00310253,39102.0,39101.0,0.7867]
[1646601080792,0.38789253,39102.0,39101.0,0.7867]
[1646601080991,0.38489253,39102.0,39101.0,0.7867]
[1646601081297,0.3513076,39102.0,39100.0,1.0]
[1646601081552,0.3513076,39102.0,39098.0,0.02572]
[1646601081553,0.45,39100.0,39077.0,5.699e-05]
[1646601081750,0.014025,39089.0,39077.0,5.699e-05]
[1646601081947,0.01692776,39087.0,39077.0,5.699e-05]
[1646601082146,0.1,39085.0,39077.0,5.699e-05]
[1646601082345,0.09982,39083.0,39077.0,5.699e-05]
[1646601082745,0.30395206,39086.0,39077.0,5.699e-05]
[1646601082951,0.1,39082.0,39077.0,5.699e-05]
[1646601083146,0.1,39078.0,39077.0,5.699e-05]
[1646601083345,0.7,39077.0,39067.0,0.15755406]
[1646601083547,0.01492065,39077.0,39056.0,0.02572]
[1646601083746,0.1,39075.0,39058.0,0.02572]
[1646601083946,0.01406912,39074.0,39062.0,0.02572]
[1646601084147,0.01383112,39073.0,39065.0,0.0503232]
[1646601084349,0.1,39079.0,39065.0,0.0503232]
[1646601084350,0.01550503,39072.0,39069.0,0.15]
[1646601084549,0.1,39080.0,39073.0,0.050086]
[1646601084746,0.01118808,39097.0,39075.0,0.560311]
[1646601084747,0.01713948,39085.0,39075.0,0.560311]
[1646601084945,0.01482716,39084.0,39077.0,0.05007]
[1646601085146,0.01742829,39083.0,39079.0,0.55241429]
[1646601085384,0.01749863,39082.0,39079.0,0.55241429]
[1646601085588,0.01749863,39082.0,39078.0,0.1]
[1646601085589,0.1,39094.0,39085.0,0.02572]
[1646601086384,0.40301244,39094.0,39085.0,0.02572]
[1646601086587,0.40301244,39094.0,39081.0,0.19016978]
[1646601087785,0.1,39094.0,39081.0,0.19016978]
[1646601087986,0.1,39094.0,39077.0,0.003]
[1646601087987,0.09,39094.0,39089.0,0.049765]
[1646601088293,0.01052252,39098.0,39096.0,0.384656]
[1646601088487,0.00010252,39098.0,39096.0,0.384656]
[1646601088786,0.01042,39102.0,39095.0,0.25363619]
[1646601089047,0.02433445,39103.0,39095.0,0.25363619]
[1646601089348,0.00021523,39099.0,39095.0,0.25363619]
[1646601089553,0.484801,39098.0,39095.0,0.25363619]
[1646601089745,1.1129634,39096.0,39087.0,0.00139529]
[1646601089946,0.31299892,39095.0,39087.0,0.00139529]
[1646601090147,0.1,39092.0,39087.0,0.00139529]
[1646601091348,0.1,39092.0,39088.0,0.049704]
[1646601091546,0.1,39092.0,39087.0,0.00139529]
[1646601091547,0.01047,39093.0,39087.0,0.00139529]
[1646601091847,0.11047,39093.0,39087.0,0.00139529]
[1646601092046,0.11047,39093.0,39088.0,0.15568242]
[1646601092247,0.1,39093.0,39088.0,0.15568242]
[1646601093087,0.1,39093.0,39088.0,0.35998254]
[1646601093492,0.1,39096.0,39088.0,0.38570254]
[1646601093695,0.77713599,39097.0,39088.0,0.38570254]
[1646601094189,0.77713599,39097.0,39089.0,0.00130388]
[1646601095489,0.87713599,39097.0,39089.0,0.00130388]
[1646601095689,0.89305494,39097.0,39089.0,0.00130388]
[1646601095888,0.1,39094.0,39089.0,0.00130388]
[1646601096737,0.1,39094.0,39088.0,6.177e-05]
[1646601096738,1.1,39093.0,39088.0,6.177e-05]
[1646601096942,0.02651743,39091.0,39078.0,0.02572]
[1646601097139,0.02651743,39091.0,39067.0,0.00089461]
[1646601097140,1.1,39088.0,39067.0,0.00089461]
[1646601097342,0.1,39079.0,39061.0,1.0]
[1646601097542,0.1,39079.0,39060.0,0.491]
[1646601097543,1.11655166,39077.0,39060.0,0.491]
[1646601097741,0.01559843,39071.0,39054.0,0.19225582]
[1646601097941,0.56697515,39071.0,39067.0,0.00089452]
[1646601098140,0.28728443,39071.0,39067.0,0.00089452]
[1646601098540,0.30342072,39070.0,39067.0,0.00089452]
[1646601098747,0.384801,39068.0,39047.0,0.4908]
[1646601098947,0.064066,39065.0,39050.0,0.32572]
[1646601099141,1.45956694,39064.0,39050.0,0.3]
[1646601099341,0.1,39051.0,39050.0,0.3]
[1646601099543,0.03164,39057.0,39053.0,0.04018664]
[1646601099742,0.76728,39056.0,39054.0,0.58386666]
[1646601099945,0.1,39058.0,39054.0,0.58386666]
[1646601100144,0.101,39069.0,39055.0,0.21631894]
[1646601100400,0.101,39069.0,39068.0,0.5582453]
[1646601100597,0.001,39069.0,39068.0,0.86166602]
[1646601100796,0.01004416,39079.0,39069.0,0.160782]
[1646601100797,8.743e-05,39079.0,39069.0,0.160782]
[1646601101002,8.743e-05,39079.0,39071.0,0.384715]
[1646601101200,0.38,39094.0,39093.0,0.36018926]
[1646601101403,1.14739,39094.0,39093.0,0.384481]
[1646601101594,1.14739,39094.0,39075.0,0.47914072]
[1646601101798,1.14739,39094.0,39081.0,0.160474]
[1646601101995,1.14739,39094.0,39080.0,0.1]
[1646601102195,0.07960284,39092.0,39080.0,0.1]
[1646601102397,0.384904,39091.0,39078.0,0.20687661]
[1646601102597,0.76739,39090.0,39078.0,0.20687661]
[1646601102797,0.01300342,39088.0,39078.0,0.20687661]
[1646601102996,0.1,39082.0,39078.0,0.20687661]
[1646601103398,0.06402,39084.0,39078.0,0.20687661]
[1646601103598,0.76739,39083.0,39078.0,0.20687661]
[1646601104241,0.76739,39083.0,39078.0,0.20643611]
[1646601104643,0.76760315,39083.0,39078.0,0.20643611]
[1646601105243,0.1,39091.0,39080.0,0.19025973]
[1646601105446,0.01056416,39095.0,39080.0,0.19025973]
[1646601105447,0.1,39093.0,39081.0,0.834894]
[1646601105646,0.01138943,39101.0,39081.0,0.684894]
[1646601105647,3.15e-06,39082.0,39081.0,0.684894]
[1646601106043,3.15e-06,39082.0,39081.0,0.3]
[1646601106344,3.15e-06,39082.0,39081.0,0.384904]
[1646601106549,0.01386907,39094.0,39082.0,0.160425]
[1646601106844,0.01048,39098.0,39090.0,0.20482586]
[1646601107043,0.52623104,39100.0,39090.0,0.20482586]
[1646601107044,0.01048,39099.0,39090.0,0.20482586]
[1646601107445,0.01048,39099.0,39090.0,0.19198488]
[1646601108196,0.00010285,39096.0,39090.0,0.19198488]
[1646601108395,0.00010285,39096.0,39088.0,0.20894948]
[1646601108798,0.384904,39094.0,39086.0,0.002]
[1646601109001,0.01241542,39093.0,39086.0,0.002]
[1646601109203,0.01241542,39093.0,39070.0,0.4863]
[1646601109204,0.2,39091.0,39071.0,0.02572]
[1646601109403,0.0123675,39081.0,39073.0,0.15634933]
[1646601109600,0.0123675,39081.0,39074.0,0.160549]
[1646601109799,0.01768827,39079.0,39074.0,0.160549]
[1646601109998,0.0123675,39081.0,39074.0,0.160549]
[1646601109999,0.0171101,39078.0,39074.0,0.160549]
[1646601110199,0.01498521,39077.0,39074.0,0.160549]
[1646601110400,0.0162273,39076.0,39074.0,0.160549]
[1646601110599,0.00481327,39082.0,39074.0,0.160549]
[1646601110600,0.01670246,39075.0,39074.0,0.160549]
[1646601110800,0.00481327,39082.0,39074.0,0.32941025]
[1646601111304,0.00481327,39082.0,39075.0,1.1]
[1646601111566,0.00481327,39082.0,39077.0,0.21120484]
[1646601111767,0.00481327,39082.0,39078.0,0.16053]
[1646601113561,0.00022294,39084.0,39078.0,0.16053]
[1646601113762,0.76747,39092.0,39082.0,0.384809]
[1646601113963,0.00022294,39084.0,39082.0,0.384809]
[1646601115064,0.064004,39090.0,39082.0,0.384809]
[1646601115696,0.00021445,39085.0,39082.0,0.384809]
[1646601116093,0.064004,39090.0,39081.0,0.1640987]
[1646601116094,0.05921845,39090.0,39084.0,0.1605]
[1646601116492,0.00010288,39085.0,39084.0,0.1605]
[1646601117090,0.05682133,39090.0,39084.0,0.1605]
[1646601117292,0.05682133,39090.0,39081.0,0.1640987]
[1646601117495,0.05682133,39090.0,39071.0,0.20274867]
[1646601117496,0.01659646,39088.0,39071.0,0.20274867]
[1646601117698,0.01428463,39083.0,39070.0,0.4863]
[1646601117897,0.384904,39082.0,39070.0,0.4863]
[1646601118094,0.3,39081.0,39070.0,0.4863]
[1646601118293,0.18613,39082.0,39081.0,0.15980217]
[1646601118593,0.18613,39082.0,39066.0,0.1544]
[1646601118594,0.1,39081.0,39066.0,0.1544]
[1646601118802,0.1,39081.0,39057.0,0.20642209]
[1646601118803,0.01357313,39071.0,39057.0,0.20642209]
[1646601119083,0.01357313,39071.0,39050.0,0.352801]
[1646601119084,0.01204339,39067.0,39050.0,0.352801]
[1646601119288,0.01267759,39060.0,39050.0,0.340021]
[1646601119487,0.09971759,39060.0,39054.0,0.18875852]
[1646601119685,0.128126,39059.0,39050.0,0.340021]
[1646601119886,0.25625163,39059.0,39050.0,0.340021]
[1646601120083,0.064063,39059.0,39055.0,0.00015664]
[1646601120285,0.384904,39058.0,39050.0,0.340021]
[1646601120486,0.11229444,39056.0,39050.0,0.340021]
[1646601120687,0.11229444,39056.0,39047.0,0.002]
[1646601120688,1.2,39054.0,39047.0,1.409e-05]
[1646601120888,0.14083403,39050.0,39047.0,1.409e-05]
[1646601121085,0.1,39048.0,39044.0,0.045]
[1646601121288,0.01414064,39046.0,39044.0,0.045]
[1646601121487,0.88155534,39045.0,39044.0,0.0001]
[1646601121697,0.76747,39045.0,39044.0,0.385004]
[1646601121890,0.06722595,39045.0,39044.0,0.385004]
[1646601122090,0.003,39052.0,39045.0,1.1]
[1646601122287,0.003,39052.0,39047.0,0.215939]
[1646601122489,0.003,39052.0,39048.0,0.684858]
[1646601122490,0.76826,39051.0,39048.0,0.684858]
[1646601122690,0.5,39061.0,39050.0,0.160985]
[1646601122900,0.5,39061.0,39049.0,1.35]
[1646601122901,0.5,39061.0,39052.0,0.384816]
[1646601123096,0.5,39065.0,39059.0,0.19250206]
[1646601123296,0.5,39065.0,39060.0,0.30500274]
[1646601123495,0.5,39065.0,39050.0,0.0128]
[1646601123496,0.5,39065.0,39055.0,0.68978674]
[1646601123695,0.5,39065.0,39061.0,0.20271098]
[1646601123896,0.5,39065.0,39062.0,0.160922]
[1646601124096,0.53601637,39073.0,39062.0,0.46592474]
[1646601124298,0.10005737,39073.0,39062.0,0.30500274]
[1646601125099,0.00022224,39069.0,39062.0,0.30500274]
[1646601125299,0.06404,39068.0,39062.0,0.17756703]
[1646601125498,0.06404,39068.0,39062.0,0.30500274]
[1646601126540,0.06404,39068.0,39063.0,0.18583681]
[1646601126541,0.00022224,39067.0,39063.0,0.18583681]
[1646601126744,0.00022224,39067.0,39062.0,0.30500274]
[1646601127042,0.00022224,39067.0,39053.0,0.31778274]
[1646601127250,0.06404,39068.0,39054.0,0.384904]
[1646601127442,0.06404,39068.0,39055.0,0.30500274]
[1646601127644,0.00022226,39062.0,39056.0,0.160837]
[1646601127843,0.00022226,39062.0,39061.0,0.20884082]
[1646601128042,0.00022226,39062.0,39061.0,0.59367182]
[1646601128444,0.064042,39068.0,39061.0,0.59367182]
[1646601128645,0.1921197,39071.0,39062.0,0.30500274]
[1646601128844,0.00021421,39063.0,39061.0,0.20884082]
[1646601129044,0.00021421,39063.0,39062.0,0.68990674]
[1646601129646,0.00251575,39067.0,39062.0,0.68990674]
[1646601129850,0.00451575,39067.0,39062.0,0.68990674]
[1646601130044,0.00021421,39064.0,39062.0,0.68990674]
[1646601130307,0.00021421,39064.0,39063.0,0.46572774]
[1646601130499,0.00451575,39067.0,39063.0,0.46572774]
[1646601130500,0.002,39067.0,39064.0,0.384882]
[1646601130699,0.00290388,39068.0,39066.0,1.1]
[1646601130700,0.00162896,39068.0,39066.0,1.1]
[1646601130898,0.00162896,39068.0,39067.0,0.46570774]
[1646601131097,0.00162896,39068.0,39067.0,0.56570774]
[1646601131298,0.01047,39084.0,39068.0,1.29391146]
[1646601131499,0.01047,39084.0,39083.0,0.17754345]
[1646601131699,0.0159988,39085.0,39084.0,0.38467]
[1646601131901,0.39332426,39089.0,39084.0,0.38467]
[1646601132100,0.01573785,39083.0,39071.0,0.4516]
[1646601132302,0.01728158,39082.0,39081.0,0.160525]
[1646601132506,0.00900056,39085.0,39081.0,0.160525]
[1646601132698,0.00900056,39085.0,39072.0,0.30676032]
[1646601132699,0.01345503,39079.0,39074.0,0.384904]
[1646601132899,0.01553297,39078.0,39075.0,0.16918728]
[1646601133101,0.01312261,39077.0,39076.0,0.46728832]
[1646601133300,0.12802203,39088.0,39076.0,0.46728832]
[1646601133500,0.12802203,39088.0,39081.0,0.15521528]
[1646601133501,0.064011,39088.0,39081.0,0.15521528]
[1646601133903,0.128014,39089.0,39081.0,0.15521528]
[1646601134141,0.128014,39089.0,39076.0,0.30676032]
[1646601134941,0.00010333,39084.0,39076.0,0.30676032]
[1646601135145,0.00010333,39084.0,39079.0,0.1771726]
[1646601135341,0.00010333,39084.0,39080.0,0.384904]
[1646601135740,0.128014,39089.0,39079.0,0.1771726]
[1646601135942,0.002,39088.0,39079.0,0.1771726]
[1646601136140,0.00022239,39084.0,39080.0,0.384904]
[1646601136344,0.00022239,39084.0,39079.0,0.1771726]
[1646601136940,0.002,39088.0,39080.0,0.384904]
[1646601137142,0.064006,39089.0,39081.0,0.30676032]
[1646601137342,0.064006,39089.0,39076.0,0.30676032]
[1646601137541,0.00022239,39083.0,39077.0,0.384904]
[1646601137795,0.00022239,39083.0,39080.0,0.001]
[1646601137993,0.00022239,39083.0,39081.0,0.384867]
[1646601138298,0.064006,39089.0,39082.0,0.34293954]
[1646601138494,0.064006,39089.0,39083.0,0.30676032]
[1646601138697,0.20113433,39092.0,39084.0,0.384904]
[1646601138698,0.10911285,39092.0,39084.0,0.384904]
[1646601138896,0.10911285,39092.0,39085.0,0.30676032]
[1646601139099,0.603,39095.0,39086.0,0.160371]
[1646601139100,0.1,39095.0,39086.0,0.160371]
[1646601139297,0.0011,39096.0,39087.0,0.30676032]
[1646601139493,0.0011,39096.0,39089.0,0.20248805]
[1646601139694,0.0011,39096.0,39090.0,0.46710932]
[1646601139894,0.00022236,39092.0,39090.0,0.46710932]
[1646601140092,0.00022236,39092.0,39091.0,0.69159032]
[1646601140298,0.00022236,39092.0,39091.0,0.87474526]
[1646601140793,0.25,39092.0,39091.0,0.87474526]
[1646601140995,0.25,39092.0,39091.0,0.56798494]
[1646601141855,0.10981849,39092.0,39091.0,0.56798494]
[1646601142456,0.10981849,39092.0,39091.0,0.38483]
[1646601142457,0.15981849,39092.0,39091.0,0.38483]
[1646601144666,0.16497045,39092.0,39091.0,0.38699234]
[1646601145295,0.14844208,39092.0,39091.0,0.38699234]
[1646601147298,0.05697978,39097.0,39092.0,0.710342]
[1646601147498,0.05697978,39097.0,39093.0,0.384904]
[1646601147699,0.05697978,39097.0,39091.0,0.00216234]
[1646601147900,0.05697978,39097.0,39092.0,0.384904]
[1646601148103,0.05697978,39097.0,39092.0,0.160245]
[1646601148502,0.05697978,39097.0,39092.0,0.32967306]
[1646601148705,0.05697978,39097.0,39092.0,0.160245]
[1646601149157,0.05697978,39097.0,39091.0,0.00216234]
[1646601149158,0.68893276,39096.0,39091.0,0.00216234]
[1646601149353,0.68893276,39096.0,39089.0,0.002]
[1646601149354,0.13254141,39091.0,39089.0,0.002]
[1646601149554,0.19655144,39091.0,39089.0,0.002]
[1646601149753,0.1,39090.0,39089.0,0.002]
[1646601150253,0.164012,39090.0,39082.0,0.384904]
[1646601150454,0.064002,39089.0,39082.0,0.384904]
[1646601150660,0.064002,39089.0,39082.0,0.29347324]
[1646601151252,0.059002,39089.0,39082.0,0.29347324]
[1646601151654,0.18252641,39091.0,39088.0,0.16397571]
[1646601151854,0.00022256,39089.0,39088.0,0.16397571]
[1646601152256,0.00022256,39089.0,39081.0,0.2144637]
[1646601152453,0.00022256,39089.0,39079.0,0.002]
[1646601152655,0.18252641,39091.0,39080.0,0.384791]
[1646601153105,0.00022255,39089.0,39080.0,0.384791]
[1646601153312,0.06422355,39089.0,39085.0,0.19127471]
[1646601153706,0.06422355,39089.0,39086.0,0.069059]
[1646601153906,0.01600315,39090.0,39085.0,0.19127471]
[1646601154112,0.01600315,39090.0,39086.0,0.37247342]
[1646601154113,0.01684155,39089.0,39086.0,0.37247342]
[1646601154310,0.5,39090.0,39086.0,0.37247342]
[1646601155008,0.5,39090.0,39088.0,0.38478]
[1646601155206,0.06852841,39091.0,39089.0,0.30342442]
[1646601155408,0.06852841,39091.0,39090.0,0.06904]
[1646601155605,0.06852841,39091.0,39090.0,0.37246442]
[1646601156005,0.06852841,39091.0,39090.0,0.5741998]
[1646601156308,0.06852841,39091.0,39090.0,0.06904]
[1646601159445,0.06852841,39091.0,39090.0,0.07237156]
[1646601161696,0.31852841,39091.0,39090.0,0.07237156]
[1646601164563,0.31852841,39091.0,39090.0,0.00333156]
[1646601165265,0.41852841,39091.0,39090.0,0.00333156]
[1646601166664,0.31852841,39091.0,39090.0,0.00333156]
[1646601169100,0.30852841,39091.0,39090.0,0.00333156]
[1646601169302,0.30852841,39091.0,39090.0,0.00189767]
[1646601169699,0.30852841,39091.0,39090.0,0.00168426]
[1646601169902,0.93654441,39091.0,39090.0,0.00168426]
[1646601170499,0.80852841,39091.0,39090.0,0.00168426]
[1646601171750,2.28756321,39091.0,39090.0,0.00168426]
[1646601171951,2.28256321,39091.0,39090.0,0.00168426]
[1646601172752,2.3349552,39091.0,39090.0,0.00168426]
[1646601174255,2.3349552,39091.0,39089.0,0.00345248]
[1646601174458,0.30207686,39090.0,39089.0,0.00345248]
[1646601174655,0.50207686,39090.0,39089.0,0.00345248]
[1646601175302,0.40207686,39090.0,39089.0,0.00345248]
[1646601175602,0.50207686,39090.0,39089.0,0.00345248]
[1646601175807,1.53142679,39090.0,39089.0,0.00345248]
[1646601176003,1.58355216,39090.0,39089.0,0.00345248]
[1646601176203,1.27127204,39090.0,39089.0,0.00180518]
[1646601176402,2.13362612,39090.0,39089.0,0.00180518]
[1646601176604,2.548099,39090.0,39089.0,0.00180518]
[1646601176802,2.22873279,39090.0,39089.0,0.00180518]
[1646601177302,2.10859071,39090.0,39089.0,0.00180518]
[1646601178103,2.04441371,39090.0,39089.0,0.00180518]
[1646601178502,2.35888546,39090.0,39089.0,0.00180518]
[1646601178704,2.04441371,39090.0,39089.0,0.00180518]
[1646601178906,2.05679925,39090.0,39089.0,0.00180518]
[1646601179349,1.74233685,39090.0,39089.0,0.00180518]
[1646601179545,0.12803,39087.0,39076.0,0.16733975]
[1646601179846,0.064015,39082.0,39077.0,0.384791]
[1646601180045,0.064015,39082.0,39080.0,0.1948183]
[1646601180345,0.064015,39082.0,39078.0,0.384791]
[1646601180547,0.064015,39082.0,39076.0,0.16733975]
[1646601180745,0.564015,39082.0,39077.0,0.32868045]
[1646601181246,0.564015,39082.0,39078.0,0.18507199]
[1646601181446,0.564015,39082.0,39079.0,0.069174]
[1646601181644,0.564015,39082.0,39080.0,0.384814]
[1646601181849,0.064018,39080.0,39076.0,0.16733975]
[1646601182045,0.064018,39080.0,39077.0,0.384814]
[1646601182646,0.564018,39080.0,39077.0,0.384814]
[1646601182902,0.564018,39080.0,39077.0,0.369814]
[1646601184304,0.564018,39080.0,39076.0,0.00160561]
[1646601184305,0.564018,39080.0,39079.0,0.01475565]
[1646601184704,0.564018,39080.0,39079.0,0.00171465]
[1646601186205,0.692069,39080.0,39079.0,0.00171465]
[1646601186408,0.728043,39080.0,39079.0,0.00171465]
[1646601186850,0.728043,39080.0,39069.0,0.00077234]
[1646601186851,0.064023,39078.0,39070.0,0.382924]
[1646601187058,0.064025,39076.0,39070.0,0.382924]
[1646601187250,0.064025,39076.0,39071.0,0.20303422]
[1646601187452,0.064025,39076.0,39072.0,0.382913]
[1646601187654,0.114025,39076.0,39072.0,0.382913]
[1646601188052,0.5,39075.0,39072.0,0.382913]
[1646601191302,0.56403,39075.0,39072.0,0.382913]
[1646601191903,0.628059,39075.0,39072.0,0.377913]
[1646601192309,0.878059,39075.0,39072.0,0.377913]
[1646601193106,0.064029,39074.0,39069.0,0.377941]
[1646601193505,0.064033,39073.0,39069.0,0.377941]
[1646601193707,0.128067,39073.0,39069.0,0.377941]
[1646601194743,0.192099,39073.0,39069.0,0.377941]
[1646601195348,0.08035435,39071.0,39063.0,0.00077612]
[1646601195551,0.411141,39070.0,39063.0,0.00077612]
[1646601195747,0.064046,39068.0,39063.0,0.00077612]
[1646601195948,0.015146,39066.0,39063.0,0.00077612]
[1646601196147,0.01787092,39065.0,39061.0,0.378031]
[1646601196347,0.01303736,39064.0,39061.0,0.378031]
[1646601196747,0.01338676,39063.0,39060.0,0.37824106]
[1646601197047,0.01531823,39062.0,39060.0,0.37824106]
[1646601197247,0.01337693,39061.0,39060.0,0.378047]
[1646601197451,0.5471,39064.0,39060.0,0.37824105]
[1646601197902,0.3,39063.0,39060.0,0.00019405]
[1646601198110,0.0471,39062.0,39060.0,0.00019405]
[1646601198301,0.1,39061.0,39055.0,6.99519405]
[1646601198500,0.1,39061.0,39057.0,6.0]
[1646601198501,0.0471,39060.0,39057.0,6.0]
[1646601198702,0.21405968,39059.0,39044.0,8.18016855]
[1646601198901,0.15,39059.0,39045.0,0.378197]
[1646601199103,0.06406,39058.0,39048.0,0.16772488]
[1646601199304,0.06406,39058.0,39049.0,0.378171]
[1646601199501,0.5,39057.0,39049.0,0.378171]
[1646601199702,0.064061,39055.0,39049.0,0.378171]
[1646601199902,0.064061,39055.0,39051.0,0.37834622]
[1646601200108,0.114061,39055.0,39051.0,0.37834622]
[1646601200305,0.114061,39055.0,39052.0,5.0]
[1646601200504,0.114061,39055.0,39053.0,0.54056555]
[1646601200706,0.114061,39055.0,39054.0,0.18286558]
[1646601200906,0.114061,39055.0,39054.0,0.56098458]
[1646601201103,0.114061,39055.0,39054.0,2.378119]
[1646601201309,0.05,39055.0,39054.0,0.378119]
[1646601201855,0.56261354,39056.0,39054.0,0.378119]
[1646601202458,0.25,39055.0,39054.0,0.37812]
[1646601202763,0.25,39055.0,39054.0,0.20920244]
[1646601202961,0.56261354,39056.0,39055.0,1.478108]
[1646601202962,0.5,39056.0,39055.0,1.478108]
[1646601203162,0.005,39059.0,39057.0,0.378085]
[1646601203362,0.1,39064.0,39058.0,0.425173]
[1646601203558,0.60133229,39068.0,39059.0,0.425159]
[1646601203559,0.10133229,39068.0,39059.0,0.425159]
[1646601203759,0.10133229,39068.0,39060.0,0.29737694]
[1646601203959,0.00133229,39068.0,39064.0,0.378003]
[1646601204358,0.064036,39071.0,39064.0,0.378003]
[1646601204560,0.003072,39072.0,39064.0,0.378003]
[1646601204860,0.003072,39072.0,39064.0,0.56499017]
[1646601205307,0.064036,39071.0,39064.0,0.56499017]
[1646601205711,0.15,39074.0,39064.0,0.56499017]